fUSD/lending_fUSD_20240122
["ID","MTS","AMOUNT","RATE_DAILY","PERIOD"]
[312532342,1705947038642,-800.0,0.00022877,2]
[312532343,1705947038651,-800.0,0.00022877,2]
[312532344,1705947038661,-180.80090215,0.00022898,2]
[312532345,1705947038671,-177.291089,0.00022898,2]
[312532346,1705947038681,-227.75696778,0.00022898,2]
[312532347,1705947038691,-155.0,0.00022898,2]
[312532348,1705947038705,-272.33856688,0.00022898,2]
[312532349,1705947038715,-1050.01826432,0.00022898,2]
[312532350,1705947038725,-7133.88963967,0.00022898,2]
[312532351,1705947038734,-361.55615053,0.00022898,2]
[312532352,1705947038744,-176.56661785,0.00022898,2]
[312532354,1705947038753,-301.44763826,0.00022898,2]
[312532355,1705947038762,-3472.45233989,0.00022898,2]
[312532356,1705947038772,-193.66512698,0.00022898,2]
[312532357,1705947038782,-162.11132826,0.00022898,2]
[312532358,1705947038791,-281.27567579,0.00022898,2]
[312532359,1705947038802,-155.0,0.00022898,2]
[312532361,1705947038812,-156.45682699,0.00022898,2]
[312532363,1705947038823,-176.01932869,0.00022898,2]
[312532365,1705947038833,-155.0,0.00022898,2]
[312532367,1705947038842,-155.55451817,0.00022898,2]
[312532369,1705947038852,-417.6160908,0.00022898,2]
[312532370,1705947038861,-207.05527583,0.00022898,2]
[312532372,1705947038871,-367.68403236,0.00022898,2]
[312532374,1705947038880,-400.0,0.00022898,2]
[312532376,1705947038890,-400.05263761,0.00022898,2]
[312532378,1705947038899,-157.17504674,0.00022898,2]
[312532381,1705947038909,-650.04373601,0.00022898,2]
[312532383,1705947038920,-1564.18265998,0.00022898,2]
[312532385,1705947038929,-264.08008738,0.00022898,2]
[312532387,1705947038938,-161.56475026,0.00022898,2]
[312532389,1705947038949,-264.54174673,0.00022898,2]
[312532391,1705947038962,-294.01251633,0.00022898,2]
[312532393,1705947038971,-185.71472234,0.00022898,2]
[312532395,1705947038980,-287.92668321,0.00022898,2]
[312532397,1705947038989,-235.69028679,0.00022898,2]
[312532399,1705947038999,-225.21653009,0.00022898,2]
[312532401,1705947039009,-156.93148293,0.00022898,2]
[312532403,1705947039018,-293.5356737,0.00022898,2]
[312532405,1705947039028,-155.0,0.00022898,2]
[312532407,1705947039038,-194.05908279,0.00022898,2]
[312532409,1705947039047,-155.43398215,0.00022898,2]
[312532411,1705947039056,-559.01998297,0.00022898,2]
[312532413,1705947039065,-390.94311427,0.00022898,2]
[312532415,1705947039075,-242.15573671,0.00022898,2]
[312532417,1705947039084,-472.78671026,0.00022898,2]
[312532419,1705947039093,-156.05286893,0.00022898,2]
[312532421,1705947039103,-173.51625013,0.00022898,2]
[312532423,1705947039112,-1762.41086594,0.00022898,2]
[312532425,1705947039121,-6312.94545483,0.00022898,2]
[312532426,1705947039131,-224.00135986,0.00022898,2]
[312532429,1705947039141,-291.23571618,0.00022898,2]
[312532431,1705947039151,-1288.50773231,0.00022898,2]
[312532433,1705947039160,-290.58226449,0.00022898,2]
[312532435,1705947039169,-503.73967654,0.00022898,2]
[312532439,1705947039179,-4828.71055598,0.00022898,2]
[312532441,1705947039189,-24076.229,0.00022898,2]
[312532444,1705947039200,-441.843,0.00022898,2]
[312532446,1705947039209,-474.69430715,0.000229,2]
[312532448,1705947039217,-5000.0,0.000229,2]
[312532450,1705947039228,-153.53049631,0.000229,2]
[312532452,1705947039239,-173.32314245,0.000229,2]
[312532454,1705947039248,-500.0,0.000229,2]
[312532456,1705947039258,-35741.8123,0.000229,2]
[312532458,1705947039267,-554.70281565,0.000229,2]
[312532460,1705947039276,-300.0,0.000229,8]
[312532462,1705947039285,-554.70281565,0.00022914,2]
[312532464,1705947039295,-554.70281565,0.00022929,2]
[312532466,1705947039304,-150.25881193,0.00022943,2]
[312532467,1705947039313,-554.70281565,0.00022943,2]
[312532469,1705947039322,-554.70281565,0.00022958,2]
[312532471,1705947039332,-554.70281565,0.00022972,2]
[312532473,1705947039341,-162.74596975,0.00022975,2]
[312532475,1705947039353,-150.25881193,0.00022986,2]
[312532477,1705947039363,-417.99759003,0.00022987,2]
[312532479,1705947039372,-554.70281565,0.00022987,2]
[312532481,1705947039382,-524.01683029,0.00022998,2]
[312532483,1705947039390,-1460.95508241,0.00022998,2]
[312532485,1705947039400,-6943.1506905,0.00022998,2]
[312532487,1705947039411,-156.28850165,0.00022998,2]
[312532489,1705947039421,-394.07115928,0.00022999,2]
[312532491,1705947039430,-159.44940565,0.00022999,2]
[312532493,1705947039439,-150.0,0.00022999,2]
[312532495,1705947039450,-159.44940565,0.00022999,2]
[312532498,1705947039460,-150.0,0.00022999,2]
[312532500,1705947039470,-159.44940565,0.00022999,2]
[312532502,1705947039479,-150.0,0.00022999,2]
[312532504,1705947039488,-159.44940565,0.00022999,2]
[312532506,1705947039498,-150.0,0.00022999,2]
[312532508,1705947039507,-159.44940565,0.00022999,2]
[312532510,1705947039516,-150.0,0.00022999,2]
[312532528,1705947039761,-159.44940565,0.00022999,2]
[312532529,1705947039772,-150.0,0.00022999,2]
[312532530,1705947039782,-159.44940565,0.00022999,2]
[312532531,1705947039792,-150.0,0.00022999,2]
[312532533,1705947039802,-159.44940565,0.00022999,2]
[312532535,1705947039811,-150.0,0.00022999,2]
[312532538,1705947039821,-159.44940565,0.00022999,2]
[312532540,1705947039830,-150.0,0.00022999,2]
[312532542,1705947039840,-159.44940565,0.00022999,2]
[312532544,1705947039849,-150.0,0.00022999,2]
[312532546,1705947039859,-1255.48407725,0.00023,2]
[312532548,1705947039869,-135964.9981485,0.00023,2]
[312532551,1705947039884,-111728.02384792,0.00023,2]
[312532553,1705947039900,-60060.04858403,0.00023,2]
[312532556,1705947039915,-1334.25292,0.00023,2]
[312532558,1705947039926,-270.5502,0.00023,2]
[312532561,1705947039942,-37210.88074999,0.00023,2]
[312532567,1705947040001,-7358678.98867906,0.00023,2]
[312532569,1705947040010,-204439.99999971,0.00023,2]
[312532571,1705947040020,-4676315.66560098,0.00023,2]
[312532573,1705947040029,-1347.341972,0.00023159,2]
[312532575,1705947040039,-806.19,0.00023229,2]
[312532576,1705947040050,-689.77,0.00023245,2]
[312532578,1705947040059,-448.71520953,0.00023288,4]
[312532579,1705947040068,-500.0,0.00023288,4]
[312532580,1705947040078,-502.5633737,0.00023288,4]
[312532581,1705947040087,-184.22546921,0.00023288,4]
[312532582,1705947040097,-467.67978792,0.00023288,2]
[312532583,1705947040107,-300.81,0.00023382,2]
[312532584,1705947040116,-1347.34197201,0.00023546,2]
[312532585,1705947040126,-440.0,0.00023807,2]
[312532586,1705947040136,-689.77,0.00024046,2]
[312532587,1705947040147,-188.35,0.00024063,2]
[312532588,1705947040157,-300.81,0.00024208,2]
[312532589,1705947040166,-754.94765202,0.00024657,2]
[312532590,1705947040176,-237.48,0.00024658,4]
[312532591,1705947040186,-250.0,0.00024658,2]
[312532592,1705947040197,-689.77,0.00024847,2]
[312532593,1705947040206,-806.19,0.00024873,2]
[312532594,1705947040216,-200.0,0.00025,2]
[312532595,1705947040226,-350.0,0.00025,3]
[312532596,1705947040236,-300.81,0.00025035,2]
[312532597,1705947040245,-474.69430712,0.00025169,2]
[312532598,1705947040255,-300.81,0.00025862,2]
[312532599,1705947040264,-188.35,0.00026327,2]
[312532600,1705947040274,-2767.0,0.000264,2]
[312532601,1705947040283,-806.19,0.00026517,2]
[312532602,1705947040292,-427.83,0.00026575,2]
[312532603,1705947040301,-300.81,0.00026689,2]
[312532604,1705947040310,-440.0,0.00026782,2]
[312532605,1705947040320,-624.03501934,0.00026795,2]
[312532606,1705947040329,-300.0,0.000269,9]
[312532607,1705947040339,-153.5304963,0.00026908,2]
[312532608,1705947040348,-400.0,0.00027,3]
[312532609,1705947040358,-150.0,0.00027397,2]
[312532610,1705947040367,-3000.0,0.00027397,2]
[312532611,1705947040376,-3000.0,0.00027397,2]
[312532612,1705947040385,-3000.0,0.00027397,2]
[312532613,1705947040395,-3000.0,0.00027397,2]
[312532614,1705947040404,-3000.0,0.00027397,2]
[312532615,1705947040413,-3000.0,0.00027397,2]
[312532616,1705947040422,-3000.0,0.00027397,2]
[312532617,1705947040431,-3000.0,0.00027397,2]
[312532618,1705947040441,-3000.0,0.00027397,2]
[312532619,1705947040450,-3000.0,0.00027397,2]
[312532620,1705947040459,-3000.0,0.00027397,2]
[312532621,1705947040468,-3000.0,0.00027397,2]
[312532622,1705947040477,-3000.0,0.00027397,2]
[312532623,1705947040486,-3000.0,0.00027397,2]
[312532624,1705947040496,-3000.0,0.00027397,2]
[312532625,1705947040505,-3000.0,0.00027397,2]
[312532626,1705947040514,-3000.0,0.00027397,2]
[312532627,1705947040523,-3000.0,0.00027397,2]
[312532628,1705947040533,-3000.0,0.00027397,2]
[312532629,1705947040542,-4980.0,0.00027397,2]
[312532630,1705947040551,-157.78,0.00027397,2]
[312532631,1705947040561,-155.73,0.00027397,2]
[312532632,1705947040570,-33657.81,0.00027397,2]
[312532633,1705947040579,-28840.45,0.00027397,2]
[312532634,1705947040588,-530.0,0.00027397,2]
[312532635,1705947040597,-4355.79,0.00027397,2]
[312532636,1705947040605,-1759.33,0.000274,2]
[312532637,1705947040614,-1759.33,0.000274,2]
[312532638,1705947040623,-1759.33,0.000274,2]
[312532639,1705947040632,-1759.33,0.000274,2]
[312532640,1705947040642,-1759.33,0.000274,2]
[312532641,1705947040651,-1759.33,0.000274,2]
[312532642,1705947040661,-1759.33,0.000274,2]
[312532643,1705947040670,-1759.33,0.000274,2]
[312532644,1705947040680,-1759.33,0.000274,2]
[312532645,1705947040689,-1759.33,0.000274,2]
[312532646,1705947040700,-474.69430712,0.00027437,3]
[312532648,1705947040710,-300.81,0.00027516,2]
[312532649,1705947040720,-4355.79,0.00027556,2]
[312532651,1705947040729,-4355.79,0.00027714,2]
[312532654,1705947040739,-4355.79,0.00027872,2]
[312532655,1705947040749,-205.36744459,0.00028,2]
[312532656,1705947040759,-4355.79,0.0002803,2]
[312532657,1705947040768,-806.19,0.0002816,2]
[312532658,1705947040778,-4355.79,0.00028189,2]
[312532659,1705947040787,-300.81,0.00028343,2]
[312532660,1705947040797,-4355.79,0.00028347,2]
[312532661,1705947040807,-155.73,0.00028376,2]
[312532662,1705947040816,-4355.79,0.00028505,2]
[312532663,1705947040826,-188.35,0.00028591,2]
[312532664,1705947040835,-4355.79,0.00028664,2]
[312532665,1705947040845,-4355.79,0.00028822,2]
[312532666,1705947040854,-450.0,0.00029,3]
[312532667,1705947040864,-8598.14117923,0.00029,2]
[312532668,1705947040875,-155.73,0.00029354,2]
[312532669,1705947040884,-474.69430712,0.00029706,4]
[312532670,1705947040894,-440.0,0.00029758,2]
[312532671,1705947040904,-731.13762758,0.000298,2]
[312532672,1705947040913,-806.19,0.00029804,2]
[312532673,1705947040922,-770.70258642,0.00029998,2]
[312532674,1705947040932,-300.60047308,0.00029999,2]
[312532675,1705947040942,-1807.84533026,0.0003,4]
[312532676,1705947040953,-5623.05876082,0.0003,2]
[312532677,1705947040964,-155.0,0.0003,2]
[312532678,1705947040974,-107818.66951592,0.0003,3]
[312532679,1705947040983,-154.537955,0.0003,3]
[312532680,1705947040992,-1000.0,0.0003,2]
[312532681,1705947041003,-3000.0,0.0003,2]
[312532682,1705947041014,-3000.0,0.0003,2]
[312532683,1705947041023,-3000.0,0.0003,2]
[312532684,1705947041034,-3000.0,0.0003,2]
[312532685,1705947041044,-3000.0,0.0003,2]
[312532686,1705947041054,-470.36,0.00030044,2]
[312532687,1705947041064,-163.81,0.00030097,2]
[312532688,1705947041074,-153.84,0.00030137,2]
[312532689,1705947041083,-155.73,0.00030333,2]
[312532690,1705947041094,-3000.0,0.0003065,2]
[312532691,1705947041104,-157.78,0.00030822,2]
[312532692,1705947041113,-188.35,0.00030855,2]
[312532693,1705947041123,-153.5304963,0.00030917,2]
[312532694,1705947041133,-1701.83496698,0.00031,10]
[312532695,1705947041142,-75436.86585496,0.00031,2]
[312532696,1705947041151,-500.0,0.00031,3]
[312532697,1705947041161,-155.73,0.00031311,2]
[312532698,1705947041170,-170.93,0.00031507,2]
[312532699,1705947041180,-3054.72,0.000317,2]
[312532700,1705947041190,-36232.3844506,0.000318,3]
[312532701,1705947041199,-474.69430712,0.00031974,5]
[312532702,1705947041209,-151.32,0.00032154,120]
[312532703,1705947041218,-155.73,0.0003229,2]
[312532704,1705947041227,-440.0,0.00032734,2]
[312532705,1705947041237,-215.38430302,0.00032876,7]
[312532706,1705947041247,-410.53528153,0.00032876,7]
[312532707,1705947041257,-200.43419482,0.00032876,7]
[312532708,1705947041266,-153.84,0.00032877,2]
[312532709,1705947041276,-558.49,0.00032877,15]
[312532710,1705947041285,-163.94,0.00032904,2]
[312532711,1705947041295,-188.35,0.00033119,2]
[312532712,1705947041304,-517.34489861,0.00033195,4]
[312532713,1705947041314,-1166.43702776,0.00033196,4]
[312532714,1705947041323,-155.73,0.00033268,2]
[312532715,1705947041333,-1000.0,0.00033333,2]
[312532716,1705947041342,-662.09522237,0.00033804,4]
[312532717,1705947041352,-500.0,0.00034,2]
[312532718,1705947041361,-1000.0,0.00034,4]
[312532719,1705947041370,-506.61948755,0.00034,4]
[312532720,1705947041379,-8019.15266711,0.00034,2]
[312532721,1705947041388,-474.69430712,0.00034243,6]
[312532722,1705947041398,-155.73,0.00034247,2]
[312532723,1705947041406,-157.78,0.00034247,2]
[312532724,1705947041416,-170.93,0.00034703,2]
[312532725,1705947041425,-192.61145803,0.000349,2]
[312532726,1705947041434,-6021.66461349,0.000349,2]
[312532727,1705947041444,-6021.66461347,0.000349,2]
[312532728,1705947041453,-5399.96974212,0.000349,2]
[312532729,1705947041562,-554.70281565,0.00023001,2]
[312532730,1705947041572,-621.69487135,0.000349,2]
[312532731,1705947041582,-600.232657,0.000349,2]
[312532732,1705947041593,-746.06831802,0.000349,2]
[312532733,1705947041605,-1088.16047109,0.000349,2]
[312532734,1705947041625,-3587.20316736,0.000349,2]
[312532735,1705947041634,-6021.66461347,0.000349,2]
[312532736,1705947041643,-6021.66461347,0.000349,2]
[312532737,1705947041652,-6021.66461347,0.000349,2]
[312532738,1705947041661,-6021.66461347,0.000349,2]
[312532739,1705947041671,-153.5304963,0.00034925,2]
[312532740,1705947041681,-1736.07637,0.0003499,2]
[312532741,1705947041690,-159.44940565,0.00034999,2]
[312532742,1705947041701,-150.0,0.00034999,2]
[312532743,1705947041710,-448.45815072,0.00035,4]
[312532744,1705947041719,-620.26980574,0.00035,4]
[312532745,1705947041728,-13198.06933864,0.00035,4]
[312532746,1705947042138,-1450.06157478,0.00035,4]
[312532747,1705947042149,-881.80562,0.00035,4]
[312532748,1705947042161,-4704.19,0.00035,4]
[312532749,1705947042172,-510.52346354,0.00035,4]
[312532750,1705947042187,-2765.81100466,0.00035,4]
[312532751,1705947042196,-1602.24219397,0.00035,2]
[312532752,1705947042205,-155.0,0.00035,2]
[312532753,1705947042215,-1801.59489927,0.00035,4]
[312532755,1705947042225,-3835.41624668,0.00035,2]
[312532757,1705947042234,-7409.9975713,0.00035,2]
[312532759,1705947042242,-932.53563936,0.00035,2]
[312532762,1705947042251,-1474.38104777,0.00035,2]
[312532764,1705947042260,-1474.38104777,0.00035,2]
[312532767,1705947042269,-1338.13534655,0.00035,2]
[312532770,1705947042278,-1338.13534655,0.00035,2]
[312532772,1705947042287,-55786.88315327,0.00035,2]
[312532774,1705947042296,-55786.88315327,0.00035,2]
[312532776,1705947042305,-55786.88315327,0.00035,2]
[312532778,1705947042315,-188.35,0.00035383,2]
[312532781,1705947042324,-6021.66461347,0.00035532,2]
[312532784,1705947042333,-153.84,0.00035616,2]
[312532787,1705947042342,-389.7,0.000357,2]
[312532789,1705947042351,-440.0,0.0003571,2]
[312532791,1705947042361,-163.81,0.00035759,2]
[312532793,1705947042371,-150.1,0.000359,3]
[312532795,1705947042380,-7999.99,0.00035997,14]
[312532797,1705947042389,-6345.72616606,0.00035997,2]
[312532799,1705947042398,-80406.52962818,0.00036,2]
[312532807,1705947042477,-489.47653646,0.00036,2]
[312532811,1705947042505,-1087.48564511,0.00036,2]
[312532812,1705947042517,-5440.69892932,0.00036,2]
[312532813,1705947042528,-373.19116195,0.00036,2]
[312532814,1705947042544,-753.39095171,0.00036,2]
[312532815,1705947042556,-290.39991326,0.00036,2]
[312532816,1705947042567,-473.04997849,0.00036,2]
[312532817,1705947042579,-587.4769397,0.00036,2]
[312532818,1705947042590,-368.04046622,0.00036,2]
[312532835,1705947042997,-396.74077807,0.000229,2]
[312532836,1705947043018,-106.65867696,0.000229,2]
[312532837,1705947043027,-162.55167607,0.00036,2]
[312532838,1705947043038,-299.29241947,0.00036,2]
[312532839,1705947043050,-1228.15636633,0.00036,2]
[312532840,1705947043068,-656.73466251,0.00036,2]
[312532841,1705947043078,-983.09527766,0.00036,2]
[312532842,1705947043090,-846.22987002,0.00036,2]
[312532843,1705947043101,-1641.23690211,0.00036,2]
[312532844,1705947043112,-449.53147874,0.00036,2]
[312532845,1705947043127,-5120.84261952,0.00036,2]
[312532846,1705947043138,-436.46509789,0.00036,2]
[312532847,1705947043149,-551.19395689,0.00036,2]
[312532848,1705947043160,-10705.54708735,0.00036,2]
[312532849,1705947043171,-431.79686796,0.00036,2]
[312532850,1705947043183,-140819.39128912,0.00036,2]
[312532851,1705947043192,-154.89,0.000362,3]
[312532852,1705947043202,-154.89,0.000362,3]
[312532853,1705947043211,-154.89,0.000362,3]
[312532854,1705947043220,-154.89,0.000362,3]
[312532855,1705947043229,-154.89,0.000362,3]
[312532856,1705947043238,-154.89,0.000362,3]
[312532857,1705947043247,-154.89,0.000362,3]
[312532858,1705947043256,-154.89,0.000362,3]
[312532859,1705947043265,-154.89,0.000362,3]
[312532860,1705947043274,-154.89,0.000362,3]
[312532861,1705947043283,-154.89,0.000362,3]
[312532862,1705947043291,-154.89,0.000362,3]
[312532863,1705947043301,-154.89,0.000362,3]
[312532864,1705947043310,-154.89,0.000362,3]
[312532865,1705947043319,-154.89,0.000362,3]
[312532866,1705947043327,-154.89,0.000362,3]
[312532867,1705947043336,-154.89,0.000362,3]
[312532868,1705947043346,-154.89,0.000362,3]
[312532869,1705947043355,-154.89,0.000362,3]
[312532870,1705947043364,-154.89,0.000362,3]
[312532871,1705947043373,-157.72,0.000362,3]
[312532872,1705947043383,-157.72,0.000362,3]
[312532873,1705947043391,-152.18,0.000362,3]
[312532874,1705947043400,-152.18,0.000362,3]
[312532875,1705947043408,-474.69430712,0.00036511,8]
[312532876,1705947043616,-558.49,0.00036613,15]
[312532877,1705947043626,-689.05942203,0.00036662,4]
[312532878,1705947043635,-1000.0,0.00036667,2]
[312532879,1705947043644,-4231.85137092,0.00036934,4]
[312532880,1705947043653,-6021.66461347,0.00037111,2]
[312532881,1705947043662,-1000.0,0.000373,2]
[312532882,1705947043671,-3183.35213757,0.00037323,2]
[312532883,1705947043680,-175.56419383,0.00037417,4]
[312532884,1705947043689,-188.35,0.00037646,2]
[312532885,1705947043698,-235.12703746,0.00037794,2]
[312532886,1705947043707,-6393.49444411,0.00037796,4]
[312532887,1705947043717,-1002.5804,0.00037799,2]
[312532888,1705947043726,-427.83,0.00037808,2]
[312532889,1705947043735,-170.93,0.000379,2]
[312532890,1705947043743,-585506.65613874,0.000379,3]
[312532891,1705947043755,-98071.03028126,0.000379,3]
[312532892,1705947043765,-210.78517362,0.00037948,10]
[312532893,1705947043774,-1500.0,0.00037977,2]
[312532894,1705947043784,-159.44940565,0.00037999,2]
[312532895,1705947043793,-150.0,0.00037999,2]
[312532896,1705947043803,-389.7,0.00038,2]
[312532897,1705947043812,-150.0,0.00038173,2]
[312532898,1705947043821,-150.0,0.00038176,2]
[312532899,1705947043831,-1500.0,0.0003821,2]
[312532900,1705947043841,-150.0,0.00038259,2]
[312532901,1705947043850,-150.0,0.00038262,2]
[312532902,1705947043859,-150.0,0.00038282,2]
[312532903,1705947043869,-150.0,0.00038289,2]
[312532904,1705947043877,-19722.0,0.00038291,2]
[312532905,1705947043886,-2908.0,0.00038291,2]
[312532906,1705947043896,-2275.0,0.00038291,2]
[312532907,1705947043906,-1030.0,0.00038291,2]
[312532908,1705947043915,-150.0,0.00038319,2]
[312532909,1705947043924,-150.0,0.00038323,2]
[312532910,1705947043933,-150.0,0.00038337,2]
[312532911,1705947043942,-185.01090773,0.00038339,2]
[312532912,1705947043952,-150.0,0.00038353,2]
[312532913,1705947044170,-150.15,0.00038356,2]
[312532914,1705947044179,-153.84,0.00038356,2]
[312532915,1705947044188,-150.0,0.00038363,2]
[312532916,1705947044198,-150.0,0.00038387,2]
[312532917,1705947044207,-150.0,0.00038388,2]
[312532918,1705947044216,-150.0,0.00038397,2]
[312532919,1705947044225,-150.0,0.00038404,2]
[312532920,1705947044234,-150.0,0.00038404,2]
[312532921,1705947044244,-150.0,0.00038421,2]
[312532922,1705947044253,-150.0,0.0003845,2]
[312532923,1705947044262,-150.0,0.00038475,2]
[312532924,1705947044271,-150.0,0.00038486,2]
[312532925,1705947044281,-150.83351122,0.00038491,2]
[312532926,1705947044290,-4425.51274453,0.000385,7]
[312532927,1705947044299,-150.0,0.00038505,2]
[312532928,1705947044308,-150.0,0.00038511,2]
[312532929,1705947044317,-150.0,0.0003852,2]
[312532930,1705947044326,-3054.71,0.000386,3]
[312532931,1705947044334,-150.0,0.00038601,2]
[312532932,1705947044343,-150.0,0.00038604,2]
[312532933,1705947044353,-150.0,0.00038609,2]
[312532934,1705947044362,-150.0,0.00038624,2]
[312532935,1705947044371,-150.0,0.00038624,2]
[312532936,1705947044380,-150.0,0.00038628,2]
[312532937,1705947044389,-150.0,0.00038631,2]
[312532938,1705947044398,-150.0,0.00038635,2]
[312532939,1705947044407,-150.0,0.0003864,2]
[312532940,1705947044416,-150.0,0.00038647,2]
[312532941,1705947044425,-150.0,0.00038649,2]
[312532942,1705947044434,-167.0,0.00038659,2]
[312532943,1705947044444,-150.0,0.00038659,2]
[312532944,1705947044457,-150.0,0.00038671,2]
[312532945,1705947044467,-150.0,0.00038672,2]
[312532946,1705947044475,-150.0,0.00038678,2]
[312532947,1705947044484,-6021.66461347,0.00038689,2]
[312532948,1705947044493,-150.0,0.0003869,2]
[312532949,1705947044502,-150.0,0.00038698,2]
[312532950,1705947044512,-33157.204767,0.000387,2]
[312532951,1705947044521,-150.0,0.00038705,2]
[312532952,1705947044530,-150.0,0.0003872,2]
[312532953,1705947044539,-150.0,0.00038728,2]
[312532954,1705947044548,-150.0,0.0003874,2]
[312532955,1705947044558,-150.0,0.00038771,2]
[312532956,1705947044567,-150.0,0.00038775,2]
[312532957,1705947044577,-150.0,0.00038779,2]
[312532958,1705947044586,-474.69430712,0.0003878,9]
[312532959,1705947044595,-150.0,0.00038784,2]
[312532960,1705947044605,-816.230159,0.000388,4]
[312532961,1705947044614,-150.0,0.00038807,2]
[312532962,1705947044623,-150.0,0.00038808,2]
[312532963,1705947044632,-150.0,0.00038827,2]
[312532964,1705947044642,-150.0,0.0003883,2]
[312532965,1705947044651,-6345.72616606,0.00038838,2]
[312532966,1705947044661,-150.0,0.00038839,2]
[312532967,1705947044670,-160452.051407,0.00038841,2]
[312532968,1705947044679,-150.0,0.00038847,2]
[312532969,1705947044688,-150.0,0.00038859,2]
[312532970,1705947044697,-150.0,0.00038861,2]
[312532971,1705947044706,-150.0,0.00038866,2]
[312532972,1705947044715,-685.42472441,0.00038876,4]
[312532973,1705947044724,-248.75310239,0.00038876,4]
[312532974,1705947044733,-155.0,0.00038876,4]
[312532975,1705947044742,-242.20238605,0.00038876,4]
[312532976,1705947044751,-158.49900803,0.00038876,4]
[312532977,1705947044761,-156.12868291,0.00038876,4]
[312532978,1705947044770,-155.62272158,0.00038876,4]
[312532979,1705947044779,-156.55145053,0.00038876,4]
[312532980,1705947044788,-156.13619062,0.00038876,4]
[312532981,1705947044797,-172.37642909,0.00038876,4]
[312532982,1705947044806,-1069.82214184,0.00038876,4]
[312532983,1705947044815,-4273.6526089,0.00038876,4]
[312532984,1705947044824,-1134.44640921,0.00038876,4]
[312532985,1705947044833,-2017.38356049,0.00038876,4]
[312532986,1705947044843,-155.0,0.00038876,2]
[312532987,1705947044851,-2765.74700008,0.00038876,4]
[312532988,1705947044860,-286.33384578,0.00038876,4]
[312532989,1705947044869,-337.65513857,0.00038876,4]
[312532990,1705947044878,-477.23784564,0.00038876,4]
[312532991,1705947044887,-203.12390135,0.00038876,4]
[312532992,1705947044897,-155.0,0.00038877,4]
[312532993,1705947044906,-225.46014583,0.00038878,4]
[312532994,1705947044915,-1348.76942551,0.00038878,4]
[312532995,1705947044924,-318.8409256,0.00038878,2]
[312532996,1705947044933,-155.0,0.00038878,4]
[312532997,1705947044942,-282.58129793,0.00038878,4]
[312532998,1705947044952,-211.90200046,0.00038878,4]
[312532999,1705947044963,-258.36058976,0.00038878,4]
[312533000,1705947044973,-3298.79475817,0.00038879,2]
[312533001,1705947044983,-2000.0,0.0003888,2]
[312533002,1705947044992,-200.0,0.0003888,2]
[312533003,1705947045003,-50233.67419904,0.0003888,2]
[312533004,1705947045014,-1253.5073684,0.0003888,2]
[312533005,1705947045025,-2364.23337979,0.0003888,2]
[312533006,1705947045041,-1514.89938785,0.0003888,2]
[312533007,1705947045051,-8647.99961815,0.0003888,2]
[312533008,1705947045062,-544.10587771,0.0003888,2]
[312533013,1705947045456,6089.46292903,0.00018398,2]
[312533014,1705947045773,-554.70281565,0.00023016,2]
[312533015,1705947045781,-395.29718435,0.0003888,2]
[312533016,1705947045792,-365.20476945,0.0003888,2]
[312533017,1705947045803,-3076.206052,0.0003888,2]
[312533018,1705947045814,-42337.50083335,0.0003888,2]
[312533019,1705947045823,-55366.31433501,0.0003888,2]
[312533020,1705947045832,-55366.31433501,0.0003888,2]
[312533021,1705947045842,-55366.31433501,0.0003888,2]
[312533022,1705947045852,-51968.06348581,0.0003888,2]
[312533023,1705947045864,-3398.2508492,0.0003888,2]